Cogmind - Beta 14 @@@ ROGUE MODE // 2024.09.21 @ 13:46:07 Player: ZarZap Result: Destroyed by Y-45 Defender with Beam Rifle Performance ------------- Evolutions (1) 500 Regions Visited (3) 600 Robots Destroyed (21) 105 Value Destroyed (515) 515 Prototype IDs (4) 80 Alien Tech Used (0) 0 Bonus (0) 0 TOTAL SCORE: 1800 Bonus ------- None Cogmind --------- Core Integrity 0/400 Matter 300/300 Energy 100/100 System Corruption 0% Temperature Warm (113) Movement Core (250) Ox4 Location -9/Storage Parts ------- > --- POWER (1) -------- (None) > --- PROPULSION (3) --- (None) > --- UTILITY (3) ------ Medium Storage Unit > --- WEAPON (2) ------- Improved Assault Rifle > --- INVENTORY (10) --- Light Ion Engine Light Ion Engine Heavy Ion Engine Heavy Ion Engine Transport Network Coupler Improved Medium Laser Peak State ------------ > --- POWER ------------ Heavy Ion Engine > --- PROPULSION ------- Compact Wheel Compact Wheel > --- UTILITY ---------- Medium Storage Unit Tractor Beam > --- WEAPON ----------- Improved Heavy Laser Improved Assault Rifle > --- INVENTORY -------- Light Ion Engine Light Ion Engine Heavy Ion Engine Heavy Ion Engine Transport Network Coupler Improved Medium Laser Improved Medium Laser Improved Assault Rifle [Rating: 17] Favorites ----------- Power Heavy Ion Engine Engine Heavy Ion Engine Propulsion Compact Wheel Leg Aluminum Leg Wheel Compact Wheel Utility Small Storage Unit Device Tractor Beam Storage Small Storage Unit Weapon Improved Assault Rifle Energy Gun Improved Medium Laser Ballistic Gun Improved Assault Rifle Build | -11 -10 -9 -9 ------- Run | Yrd Mat Mat Sto Slots Evolved 2 | . . 2 . Power . | . . . . Propulsion 1 | . . 1 . Utility 1 | . . 1 . Weapon . | . . . . Parts Attached 20 | 2 3 3 12 Power 1 | . . . 1 Engine 1 | . . . 1 Core . | . . . . Reactor . | . . . . Propulsion 8 | 2 . 1 5 Treads . | . . . . Leg . | . . . . Wheel 8 | 2 . 1 5 Hover . | . . . . Flight . | . . . . Utility 2 | . . . 2 Device 1 | . . . 1 Storage 1 | . . . 1 Processor . | . . . . Hackware . | . . . . Protection . | . . . . Artifact . | . . . . Weapon 9 | . 3 2 4 Energy Gun 4 | . 1 . 3 Energy Cannon . | . . . . Ballistic Gun 5 | . 2 2 1 Ballistic Cannon . | . . . . Launcher . | . . . . Special Weapon . | . . . . Impact Weapon . | . . . . Slashing Weapon . | . . . . Piercing Weapon . | . . . . Special Melee Weapon . | . . . . Unidentified Prototypes 4 | . 2 . 2 Parts Lost 12 | . 1 . 11 Power 2 | . 1 . 1 Propulsion 6 | . . . 6 Utility 1 | . . . 1 Weapon 3 | . . . 3 Highest Loss Streak 7 | . 1 . 7 To Critical Strikes . | . . . . Average Slot Usage (%) 72 | . 84 66 69 Engine 8 | . 13 . 8 Wheel 27 | . 28 33 26 Device 1 | . . . 2 Storage 11 | . 14 11 11 Energy Gun 5 | . 13 3 2 Ballistic Gun 17 | . 14 18 18 Peak Build Rating 17 | 6 11 10 17 Average Rating 10 | 6 9 9 11 On Entrance 7 | 6 6 10 9 Naked Turns . | . . . . Heaviest Build 26 | 12 14 11 26 Greatest Support 48 | 32 32 48 48 Greatest Overweight (x) 8 | . . . 8 Average Overweight (x) . | . . . . Largest Inventory Capacity 10 | 8 8 8 10 Average Capacity 8 | 8 8 8 9 Most Carried 10 | 6 6 5 10 Average Carried 5 | 4 4 5 7 Final Capacity 10 | 8 8 8 10 Final Carried 6 | 2 6 5 6 Class Distribution -------------------- 91% | Mutant 8% | Scavenger-Mutant Dominant Class ---------------- Mutant | -10/Materials Mutant | -9/Materials Mutant | -9/Storage Resources | -11 -10 -9 -9 ----------- Run | Yrd Mat Mat Sto Matter Collected 606 | 200 68 . 338 Remotely 78 | . . . 78 Salvage Created 893 | . 287 25 581 Parts 48 | . 17 3 28 Haulers Intercepted 1 | . . . 1 Recyclers Shooed 1 | . . . 1 Parts Field Recycled . | . . . . Retrieved Matter . | . . . . Parts Self-Destructed . | . . . . Prevented . | . . . . Kills | -11 -10 -9 -9 ------- Run | Yrd Mat Mat Sto Combat Hostiles Destroyed 15 | . 6 2 7 Guns 15 | . 6 2 7 Classes Destroyed 8 | . 3 . 5 Builder 1 | . . . 1 Hauler 1 | . . . 1 Recycler 3 | . 1 . 2 Operator 1 | . . . 1 Swarmer 5 | . 3 2 . Grunt 7 | . 3 . 4 Duelist 1 | . . . 1 Sentry 2 | . . . 2 Best Kill Streak 4 | . 4 2 3 Combat Bots Only 4 | . 4 2 2 Max Kills in Single Turn 1 | . 1 1 1 Gunslinging . | . . . . Exploded . | . . . . Melee . | . . . . Uniques/NPCs Destroyed . | . . . . Combat | -11 -10 -9 -9 -------- Run | Yrd Mat Mat Sto Hostile Shots Fired 131 | . 27 24 80 Missed 28 | . 5 8 15 Damage Taken 1423 | . 212 125 1086 Core 457 | . 50 45 362 Absorbed by Shields . | . . . . Core Remaining (%) 90 | 100 80 . . Volleys Fired 78 | . 13 7 58 Largest 2 | . 2 2 2 Hottest 121 | . 79 79 121 Shots Fired 141 | . 26 14 101 Gun 141 | . 26 14 101 Cannon . | . . . . Launcher . | . . . . Special . | . . . . Kinetic 102 | . 12 12 78 Thermal 39 | . 14 2 23 Explosive . | . . . . Electromagnetic . | . . . . Robot Hit Streak 15 | . 4 3 15 Robot Miss Streak 4 | . 4 3 2 Penetration Max . | . . . . Secondary Targets 2 | . 1 . 1 Max Gunslinging Chain 1 | . 1 . 1 Shots Hit Robots 99 | . 14 7 78 Core Hits 40 | . 8 3 29 Critical Kills . | . . . . Critical Parts Destroyed 1 | . . . 1 Critical Strikes 2 | . . . 2 Burn 1 | . . . 1 Destroy 1 | . . . 1 Melee Attacks . | . . . . Impact . | . . . . Slashing . | . . . . Piercing . | . . . . Sneak Attacks . | . . . . Combat Hostiles . | . . . . Follow-up Attacks . | . . . . Damage Inflicted 1431 | . 226 97 1108 Guns 1431 | . 226 97 1108 Cannons . | . . . . Explosions . | . . . . Melee . | . . . . Ramming . | . . . . Kinetic 938 | . 90 97 751 Thermal 493 | . 136 . 357 Explosive . | . . . . Electromagnetic . | . . . . Impact . | . . . . Slashing . | . . . . Piercing . | . . . . Highest Corruption 4 | . 4 . . Average Corruption 4 | . 4 . . Corruption Purged . | . . . . Corruption Blocked . | . . . . Effects 4 | . 4 . . Matter Fused 2 | . 2 . . Misfires 1 | . 1 . . Weapon Failures 1 | . 1 . . Overload Shots . | . . . . Overflow Damage . | . . . . Projectiles . | . . . . Explosions . | . . . . Melee . | . . . . Knockbacks . | . . . . Impact . | . . . . Kinetic . | . . . . Secondary . | . . . . Self-Inflicted Damage . | . . . . Shots . | . . . . Rammed . | . . . . Targets Rammed . | . . . . Kicked . | . . . . Crushed . | . . . . Highest Temperature 333 | . 87 . 333 Average Temperature 118 | . 32 . 164 Received Heat Transfer 381 | . 45 . 336 Effects 2 | . . . 2 Interference 2 | . . . 2 Siege Activations . | . . . . Robots Corrupted . | . . . . Combat Hostiles . | . . . . Parts Fried . | . . . . Impact Corruptions . | . . . . Robots Melted . | . . . . Combat Hostiles . | . . . . Parts Melted 1 | . 1 . . Heat Transferred 962 | . 296 . 666 Parts Sabotaged . | . . . . Parts Stolen . | . . . . Parts Stripped . | . . . . Power Chain Reactions . | . . . . Alert | -11 -10 -9 -9 ------- Run | Yrd Mat Mat Sto Peak Influence 204 | . 166 124 204 Initial 69 | . . 69 52 Average 87 | . 48 107 101 Maximum Alert Level 1 | . . . 1 Low Security (%) 98 | 100 100 100 97 Level 1 1 | . . . 2 Level 2 . | . . . . Level 3 . | . . . . Level 4 . | . . . . Level 5 . | . . . . High Security . | . . . . Max Security . | . . . . Squads Dispatched 1 | . . . 1 Investigation . | . . . . Extermination . | . . . . Reinforcement 1 | . . . 1 Assault . | . . . . Garrison . | . . . . Intercept . | . . . . Searches Triggered . | . . . . Construction Impeded . | . . . . Haulers Reinforced . | . . . . Active Scanning Responses . | . . . . Cargo Convoy Interrupts . | . . . . Stealth | -11 -10 -9 -9 --------- Run | Yrd Mat Mat Sto Distress Signals 6 | . 3 1 2 Communications Jammed . | . . . . Distress Signals . | . . . . Times Spotted 26 | . 10 3 13 Peak Tracking Total 6 | . 4 3 6 Tactical Retreats 2 | . 1 . 1 Traps | -11 -10 -9 -9 ------- Run | Yrd Mat Mat Sto Traps Triggered 1 | . . . 1 Indirectly . | . . . . Trap Hack Attempts . | . . . . Triggered . | . . . . Disarmed . | . . . . Reprogrammed . | . . . . Reused . | . . . . Traps Extracted . | . . . . Installed . | . . . . Triggered . | . . . . Machines | -11 -10 -9 -9 ---------- Run | Yrd Mat Mat Sto Machines Disabled 1 | . . 1 . Max in Single Turn 1 | . . 1 . Machines Repaired . | . . . . Machines Dismantled . | . . . . Machines Sabotaged . | . . . . Overloaded Fab Kills . | . . . . Hacking | -11 -10 -9 -9 --------- Run | Yrd Mat Mat Sto Machines Accessed 1 | . . . 1 Terminals 1 | . . . 1 Fabricators . | . . . . Repair Stations . | . . . . Recycling Units . | . . . . Scanalyzers . | . . . . Garrison Access . | . . . . Total Hacks 1 | . . . 1 Successful 1 | . . . 1 Failed . | . . . . Catastrophic . | . . . . Database Lockouts . | . . . . Manual . | . . . . Terminals 1 | . . . 1 Fabricators . | . . . . Repair Stations . | . . . . Recycling Units . | . . . . Scanalyzers . | . . . . Garrison Access . | . . . . Terminal Hacks 1 | . . . 1 Open Door 1 | . . . 1 Fabricator Hacks . | . . . . Repair Station Hacks . | . . . . Recycling Unit Hacks . | . . . . Scanalyzer . | . . . . Garrison Access Hacks . | . . . . Unauthorized Hacks . | . . . . Terminals . | . . . . Fabricators . | . . . . Repair Stations . | . . . . Recycling Units . | . . . . Scanalyzers . | . . . . Garrison Access . | . . . . Data Cores Recovered 1 | . . . 1 Used . | . . . . Hacking Detections . | . . . . Full Trace Events . | . . . . Feedback Events . | . . . . Feedback Blocked . | . . . . Robot Schematics Acquired . | . . . . Robots Built . | . . . . Authchips . | . . . . Time . | . . . . Total Robot Build Rating . | . . . . Part Schematics Acquired . | . . . . Parts Built . | . . . . Authchips . | . . . . Time . | . . . . Total Part Build Rating . | . . . . Parts Repaired . | . . . . Time . | . . . . Parts Recycled . | . . . . Recycled Matter . | . . . . Retrieved Matter . | . . . . Retrieved Components . | . . . . Parts Scanalyzed . | . . . . Part Schematics Acquired . | . . . . Parts Damaged . | . . . . Bothacking | -11 -10 -9 -9 ------------ Run | Yrd Mat Mat Sto Used RIF Installer . | . . . . Robots Hacked . | . . . . Non-combat . | . . . . Combat . | . . . . Robot Hacks Applied . | . . . . Relay Couplers Released . | . . . . Fabnet Peak Effective % . | . . . . Robots Rewired . | . . . . Allies Hacked . | . . . . Hacks Repelled . | . . . . Allies | -11 -10 -9 -9 -------- Run | Yrd Mat Mat Sto Total Allies . | . . . . Largest Group . | . . . . Highest-Rated Group . | . . . . Highest-Rated Ally . | . . . . Total Orders . | . . . . Ally Attacks . | . . . . Total Damage . | . . . . Kills . | . . . . Allies Corrupted . | . . . . Allies Melted . | . . . . Intel | -11 -10 -9 -9 ------- Run | Yrd Mat Mat Sto Robot Analysis Total . | . . . . Derelict Logs Recovered . | . . . . Drone Launches . | . . . . Drone Recoveries . | . . . . Exploration | -11 -10 -9 -9 ------------- Run | Yrd Mat Mat Sto Turns Passed 712 | 8 180 95 429 Spaces Moved 450 | 3 131 72 244 Core 4 | . . . 4 Treads . | . . . . Legs . | . . . . Wheels 446 | 3 131 72 240 Hover . | . . . . Flight . | . . . . Fastest Speed 93 | 100 100 100 93 Average Speed 100 | 100 100 100 101 Slowest Speed 450 | 100 100 100 450 Overloaded Moves . | . . . . Propulsion Burnouts . | . . . . Robots Hopped . | . . . . Cave-ins Triggered . | . . . . Exploration Rate (%) 20 | 2 24 13 42 Regions Visited 3 Branch Regions 1 Pre-discovered Areas 1 | . . . 1 Known Exits Taken . | . . . . Unknown Exits Taken 3 | 1 1 1 . Scrap Searched . | . . . . Spaces Dug . | . . . . Terrain Destroyed 2 | . . . 2 Melee . | . . . . Projectile 2 | . . . 2 AOE . | . . . . Terrain Rammed . | . . . . Walls Destroyed . | . . . . Machines Disabled . | . . . . Actions | -11 -10 -9 -9 --------- Run | Yrd Mat Mat Sto Total 571 | 8 153 81 329 Wait 9 | . 2 . 7 Move 447 | 2 130 71 244 Hop . | . . . . Pick Up 9 | . 4 . 5 Fast Attach 6 | . 1 . 5 Attach 5 | . . 1 4 Detach . | . . . . Swap 9 | 2 2 2 3 Drop 8 | 4 1 . 3 Fire 78 | . 13 7 58 Melee . | . . . . Ram . | . . . . Kick . | . . . . Crush . | . . . . Escape Stasis . | . . . . Rewire . | . . . . Trap . | . . . . Miscellaneous . | . . . . Route ------- -11/Scrapyard -10/Materials -9/Materials (discovered 2 exits: *Sto x2) -9/Storage History --------- Turn | Location | Event 6 | -11/Scrapyard | Discovered new exit (range 0) 9 | -11/Scrapyard | Entered Materials 131 | -10/Materials | Discovered new exit (range 16) 189 | -10/Materials | Entered another Materials area 189 | -9/Materials | Evolved 2 slots: Propulsion x1, Utility x1 190 | -9/Materials | Discovered new exit (range 8) 228 | -9/Materials | Discovered new exit (range 16) 284 | -9/Materials | Entered Storage 307 | -9/Storage | Build established: Mutant 624 | -9/Storage | Learned location of Armory (-3) 666 | -9/Storage | Core integrity fell below 50% 686 | -9/Storage | Lost 7 parts (5n1u1w) 694 | -9/Storage | Core integrity fell below 20% 713 | -9/Storage | Destroyed by Y-45 Defender with Beam Rifle Last Messages --------------- 00668_ Acquired Imp. Heavy Laser. 00673_ G-47 Trooper destroyed. 00674_ Overheating: System interference. 00674_ Imp. Medium Laser temporarily disabled. 00674_ Acquired 22 matter. 00687_ Imp. Heavy Laser destroyed. 00693_ Acquired 10 matter. 00694_ Acquired 3 matter. 00695_ G-34 Mercenary destroyed. 00696_ U-05 Engineer builds a Wall. 00697_ Acquired 3 matter. 00698_ Hvy. Ion Engine destroyed. 00699_ G-34 Mercenary destroyed. 00699_ Switching to secondary target: G-34 Mercenary. 00700_ Acquired 2 matter. 00700_ U-05 Engineer builds a Wall. 00701_ Imp. Medium Laser destroyed. 00705_ Acquired 3 matter. 00710_ G-34 Mercenary destroyed. 00711_ Acquired 3 matter. Map ----- +----------------------------------------------------+ | ??# # # #??????????????????????? | | ??# """ # # """ #??????????????????????? | | ### """ # # """ #??????????????????????? | | + """ # # """ #??????????????????????? | | ## + /% #??????????????????????? | | ## """ # #* """ #??????????????????????? | | ## """ # # """ #??????????????????????? | | ## """ #* # """ +??????????????????????? | | ## #!]!# #??????????????????????? | | ########### ! ##########??????????????????????? | | #?????????#=]=#???????????????????????????????? | | ##????????#] #???????????????????????????????? | | +????????# #?????????????????#?????????????? | | #????????# #???????????????? #?????????????? | | #????????# ################# #?????????????? | | #????????# ^^ #?????????????? | | #????????#[* ^ #?????????????? | | #????????#!%[ #?????????????? | | = ######### #?????????????? | | +#### ######+##???# #u " " + #??????? | | ????????????? ?????# + "R" #! ???????? | | ????????????? ?????# # = *""" #??? ???????? | | ????????????? ?????#####%!!= #?????????????? | | ????????????? ?????????#[[*! #?????????????? | | ????????????? ?????????##Y##" "###?????????????? | | ????????????????????????#@T#"R"#???????????????? | | ????????????????????????# ##"""#???????????????? | | ????????????????????????#[#???##???????????????? | | ????????????????????????###????????????????????? | | ???????????????????????????????????????????????? | | | | | | | | | | | | | | | | | | | | | | | | | | | | | | | | | | | | | | | | | +----------------------------------------------------+ Best States ------------- Heat Dissipation 28 Energy Generation 14 Energy Capacity 280 Matter Stores 300 Matter Capacity 300 Sight Range 16 Terrain Scan Density 10 Evasion (%) 41 Item Schematics ----------------- None Robot Schematics ------------------ None Fabricated ------------ Nothing Alien Tech Used ----------------- None Achievements -------------- None Challenges ------------ None Game ------ Seed CommVariableAutocannon Manual? 0 Play Time 00:09:24 Cumulative 25.9 hours Start 2024.09.21 @ 13:38:19 End 2024.09.21 @ 13:46:07 Sessions 1 Manual Loads 0 Difficulty Rogue Special Mode None Game No. 107 Rogue 103 Adventurer 4 Explorer 0 Win Type - Total 0 Types 0/0/0/0/0/0/0/0/0 Lore% 12 Gallery% 29 Achievement% 19 Wizard Run 0 Options --------- Layout 2 ASCII 0 Keyboard 0 Movement Mouse Keybinds 0 Fullscreen 1 Font 16/SmallcapsGlow Map View 55x47 Zoom Use 0% Tactical HUD 1 Map Filters NONE Filters NONE Steam 1 RUN: f76a22c0-5e88-41d5-874d-47e02edf12e8